fUST/lending_fUST_20240726
["ID","MTS","AMOUNT","RATE_DAILY","PERIOD"]
[333249090,1721979044028,-500.0,0.00013698,2]
[333249091,1721979044038,-270.44284524,0.00013698,2]
[333249092,1721979044047,-500.0,0.00013698,2]
[333249093,1721979044057,-500.0,0.00013698,2]
[333249094,1721979044068,-660.8976645,0.00013698,2]
[333249095,1721979044078,-660.8976645,0.00013698,2]
[333249096,1721979044088,-399.09550802,0.00013698,2]
[333249097,1721979044098,-660.8976645,0.00013698,2]
[333249098,1721979044109,-660.8976645,0.00013698,2]
[333249099,1721979044119,-660.8976645,0.00013698,2]
[333249100,1721979044129,-660.8976645,0.00013698,2]
[333249101,1721979044138,-660.8976645,0.00013698,2]
[333249102,1721979044148,-660.8976645,0.00013698,2]
[333249103,1721979044158,-660.8976645,0.00013698,2]
[333249104,1721979044170,-660.8976645,0.00013698,2]
[333249105,1721979044179,-660.8976645,0.00013698,2]
[333249106,1721979044188,-660.8976645,0.00013698,2]
[333249107,1721979044198,-222.82947937,0.00013698,2]
[333249108,1721979044208,-500.0,0.00013698,2]
[333249109,1721979044218,-500.0,0.00013698,2]
[333249110,1721979044227,-500.0,0.00013698,2]
[333249111,1721979044237,-500.0,0.00013698,2]
[333249112,1721979044247,-550.19511607,0.00013698,2]
[333249113,1721979044258,-3000.0,0.00013699,2]
[333249114,1721979044268,-265.483994,0.00013699,2]
[333249115,1721979044278,-505.0,0.00013882,2]
[333249116,1721979044288,-1409.0,0.00013882,2]
[333249117,1721979044298,-150.0,0.00013882,2]
[333249118,1721979044309,-3063.4546143,0.0001392,2]
[333249119,1721979044319,-151.0,0.0001394,2]
[333249120,1721979044327,-151.0,0.00013952,2]
[333249121,1721979044338,-151.0,0.00013952,2]
[333249122,1721979044348,-122.19629088,0.00013952,2]
[333249123,1721979044430,-29.49856112,0.00013952,2]
[333249124,1721979044439,-151.0,0.00013962,2]
[333249125,1721979044449,-4595.18192145,0.00013962,2]
[333249126,1721979044459,-150.04983941,0.00013972,2]
[333249127,1721979044468,-522.41,0.00013972,2]
[333249128,1721979044478,-500.0,0.00013972,2]
[333249129,1721979044487,-500.0,0.00013972,2]
[333249130,1721979044496,-548.03,0.00013972,2]
[333249131,1721979044506,-500.0,0.00013972,2]
[333249132,1721979044515,-500.0,0.00013972,2]
[333249133,1721979044525,-379.72,0.00013972,2]
[333249134,1721979044535,-484.56,0.00013972,2]
[333249135,1721979044544,-645.89,0.00013972,2]
[333249136,1721979044554,-498.91,0.00013972,2]
[333249137,1721979044563,-151.32,0.00013972,2]
[333249138,1721979044572,-500.0,0.00013972,2]
[333249139,1721979044582,-500.0,0.00013972,2]
[333249140,1721979044591,-169.58,0.00013972,2]
[333249141,1721979044601,-166.21,0.00013972,2]
[333249142,1721979044611,-272.0,0.00013972,2]
[333249143,1721979044621,-452.2,0.00013972,2]
[333249144,1721979044630,-500.0,0.00013972,2]
[333249145,1721979044639,-174.67,0.00013972,2]
[333249146,1721979044650,-174.9,0.00013972,2]
[333249147,1721979044665,-563.4,0.00013972,2]
[333249148,1721979044674,-177.3,0.00013972,2]
[333249149,1721979044684,-500.0,0.00013972,2]
[333249150,1721979044693,-609.89,0.00013972,2]
[333249151,1721979044704,-500.0,0.00013972,2]
[333249152,1721979044713,-360.96,0.00013972,2]
[333249153,1721979044722,-615.44,0.00013972,2]
[333249154,1721979044733,-500.0,0.00013972,2]
[333249155,1721979044743,-500.0,0.00013972,2]
[333249156,1721979044753,-471.16,0.00013972,2]
[333249157,1721979044762,-602.4,0.00013972,2]
[333249158,1721979044771,-500.0,0.00013972,2]
[333249159,1721979044780,-195.8,0.00013972,2]
[333249160,1721979044790,-500.0,0.00013972,2]
[333249161,1721979044799,-371.65,0.00013972,2]
[333249162,1721979044809,-443.8,0.00013972,2]
[333249163,1721979044818,-500.0,0.00013972,2]
[333249164,1721979044828,-578.13,0.00013972,2]
[333249165,1721979044838,-178.46,0.00013972,2]
[333249166,1721979044848,-413.44,0.00013972,2]
[333249167,1721979044857,-484.04,0.00013972,2]
[333249168,1721979044866,-160.95,0.00013972,2]
[333249169,1721979044875,-177.8,0.00013972,2]
[333249170,1721979044885,-500.0,0.00013972,2]
[333249171,1721979044895,-530.3,0.00013972,2]
[333249172,1721979044904,-262.78,0.00013972,2]
[333249173,1721979044917,-500.0,0.00013972,2]
[333249174,1721979044927,-299.98,0.00013972,2]
[333249175,1721979044938,-185.7,0.00013972,2]
[333249176,1721979044948,-500.0,0.00013972,2]
[333249177,1721979044959,-193.06,0.00013972,2]
[333249178,1721979044969,-291.19,0.00013972,2]
[333249179,1721979044979,-500.0,0.00013972,2]
[333249180,1721979044989,-615.44,0.00013972,2]
[333249181,1721979045012,-567.62,0.00013972,2]
[333249182,1721979045023,-500.0,0.00013972,2]
[333249183,1721979045034,-635.64,0.00013972,2]
[333249184,1721979045046,-220.7,0.00013972,2]
[333249185,1721979045057,-602.4,0.00013972,2]
[333249186,1721979045067,-500.0,0.00013972,2]
[333249187,1721979045077,-520.09,0.00013972,2]
[333249188,1721979045088,-500.0,0.00013972,2]
[333249189,1721979045101,-500.0,0.00013972,2]
[333249190,1721979045111,-500.0,0.00013972,2]
[333249191,1721979045125,-500.0,0.00013972,2]
[333249192,1721979045135,-500.0,0.00013972,2]
[333249193,1721979045148,-252.11695064,0.00013972,2]
[333249194,1721979045159,-500.0,0.00013972,2]
[333249195,1721979045172,-500.0,0.00013972,2]
[333249196,1721979045184,-500.0,0.00013972,2]
[333249197,1721979045195,-500.0,0.00013972,2]
[333249198,1721979045206,-178.46,0.00013972,2]
[333249199,1721979045218,-500.0,0.00013972,2]
[333249200,1721979045230,-519.84560829,0.00013972,2]
[333249201,1721979045241,-578.13,0.00013972,2]
[333249202,1721979045252,-500.0,0.00013972,2]
[333249203,1721979045262,-500.0,0.00013972,2]
[333249204,1721979045271,-360.96,0.00013972,2]
[333249205,1721979045281,-355.6,0.00013972,2]
[333249206,1721979045291,-500.0,0.00013972,2]
[333249207,1721979045301,-500.0,0.00013972,2]
[333249208,1721979045311,-525.56,0.00013972,2]
[333249209,1721979045321,-609.89,0.00013972,2]
[333249211,1721979045331,-500.0,0.00013972,2]
[333249213,1721979045340,-500.0,0.00013972,2]
[333249214,1721979045350,-500.0,0.00013972,2]
[333249215,1721979045363,-500.0,0.00013972,2]
[333249216,1721979045375,-639.62,0.00013972,2]
[333249217,1721979045388,-500.0,0.00013972,2]
[333249218,1721979045399,-548.03,0.00013972,2]
[333249219,1721979045410,-500.0,0.00013972,2]
[333249220,1721979045422,-500.0,0.00013972,2]
[333249221,1721979045432,-522.41,0.00013972,2]
[333249222,1721979045441,-379.72,0.00013972,2]
[333249223,1721979045452,-500.0,0.00013972,2]
[333249224,1721979045461,-484.56,0.00013972,2]
[333249225,1721979045472,-645.89,0.00013972,2]
[333249227,1721979045483,-500.0,0.00013972,2]
[333249229,1721979045492,-498.91,0.00013972,2]
[333249231,1721979045504,-151.32,0.00013972,2]
[333249233,1721979045514,-500.0,0.00013972,2]
[333249235,1721979045525,-500.0,0.00013972,2]
[333249237,1721979045535,-500.0,0.00013972,2]
[333249239,1721979045546,-500.0,0.00013972,2]
[333249241,1721979045557,-642.59,0.00013972,2]
[333249243,1721979045567,-500.0,0.00013972,2]
[333249245,1721979045577,-500.0,0.00013972,2]
[333249248,1721979045587,-177.69039988,0.00013972,2]
[333249250,1721979045597,-500.0,0.00013972,2]
[333249251,1721979045608,-500.0,0.00013972,2]
[333249254,1721979045619,-500.0,0.00013972,2]
[333249256,1721979045632,-500.0,0.00013972,2]
[333249258,1721979045645,-507.66272438,0.00013972,2]
[333249260,1721979045660,-500.0,0.00013972,2]
[333249262,1721979045672,-500.0,0.00013972,2]
[333249264,1721979045682,-500.0,0.00013972,2]
[333249266,1721979045692,-500.0,0.00013972,2]
[333249268,1721979045703,-500.0,0.00013972,2]
[333249270,1721979045713,-500.0,0.00013972,2]
[333249272,1721979045722,-500.0,0.00013972,2]
[333249274,1721979045733,-500.0,0.00013972,2]
[333249276,1721979045743,-500.0,0.00013972,2]
[333249278,1721979045753,-500.0,0.00013972,2]
[333249280,1721979045762,-500.0,0.00013972,2]
[333249282,1721979045771,-500.0,0.00013972,2]
[333249284,1721979045781,-643.66,0.00013972,2]
[333249285,1721979045791,-500.0,0.00013972,2]
[333249286,1721979045800,-500.0,0.00013972,2]
[333249287,1721979045809,-500.0,0.00013972,2]
[333249289,1721979045820,-500.0,0.00013972,2]
[333249291,1721979045830,-500.0,0.00013972,2]
[333249293,1721979045847,-500.0,0.00013972,2]
[333249295,1721979045857,-500.0,0.00013972,2]
[333249297,1721979045867,-500.0,0.00013972,2]
[333249299,1721979045876,-500.0,0.00013972,2]
[333249302,1721979045886,-500.0,0.00013972,2]
[333249304,1721979045896,-634.64808383,0.00013972,2]
[333249306,1721979045907,-500.0,0.00013972,2]
[333249308,1721979045919,-152.511806,0.00013972,2]
[333249310,1721979045928,-500.0,0.00013972,2]
[333249312,1721979045937,-500.0,0.00013972,2]
[333249314,1721979045947,-500.0,0.00013972,2]
[333249316,1721979045956,-500.0,0.00013972,2]
[333249318,1721979045966,-500.0,0.00013972,2]
[333249319,1721979045977,-500.0,0.00013972,2]
[333249320,1721979045988,-500.0,0.00013972,2]
[333249321,1721979045998,-500.0,0.00013972,2]
[333249322,1721979046008,-500.0,0.00013972,2]
[333249323,1721979046019,-500.0,0.00013972,2]
[333249324,1721979046031,-504.68,0.00013972,2]
[333249325,1721979046043,-500.0,0.00013972,2]
[333249326,1721979046055,-500.0,0.00013972,2]
[333249327,1721979046064,-500.0,0.00013972,2]
[333249328,1721979046076,-500.0,0.00013972,2]
[333249329,1721979046087,-500.0,0.00013972,2]
[333249330,1721979046098,-500.0,0.00013972,2]
[333249331,1721979046110,-578.13,0.00013972,2]
[333249332,1721979046120,-500.0,0.00013972,2]
[333249333,1721979046132,-500.0,0.00013972,2]
[333249334,1721979046216,-596.48,0.00013972,2]
[333249335,1721979046228,-500.0,0.00013972,2]
[333249336,1721979046238,-500.0,0.00013972,2]
[333249337,1721979046249,-360.96,0.00013972,2]
[333249338,1721979046259,-500.0,0.00013972,2]
[333249339,1721979046270,-195.27213819,0.00013972,2]
[333249340,1721979046280,-500.0,0.00013972,2]
[333249341,1721979046290,-500.0,0.00013972,2]
[333249342,1721979046299,-500.0,0.00013972,2]
[333249343,1721979046308,-500.0,0.00013972,2]
[333249344,1721979046318,-500.0,0.00013972,2]
[333249345,1721979046327,-500.0,0.00013972,2]
[333249346,1721979046337,-178.46,0.00013972,2]
[333249347,1721979046348,-153.438118,0.00013972,2]
[333249348,1721979046359,-500.0,0.00013972,2]
[333249349,1721979046368,-548.03,0.00013972,2]
[333249350,1721979046378,-191.68299004,0.00013972,2]
[333249351,1721979046387,-645.89,0.00013972,2]
[333249352,1721979046397,-151.0,0.00013972,2]
[333249353,1721979046407,-484.56,0.00013972,2]
[333249354,1721979046418,-500.0,0.00013972,2]
[333249355,1721979046427,-609.89,0.00013972,2]
[333249356,1721979046437,-151.32,0.00013972,2]
[333249357,1721979046447,-500.0,0.00013972,2]
[333249358,1721979046457,-618.64,0.00013972,2]
[333249359,1721979046467,-500.0,0.00013972,2]
[333249360,1721979046478,-221.2636105,0.00013972,2]
[333249361,1721979046488,-498.91,0.00013972,2]
[333249362,1721979046499,-642.59,0.00013972,2]
[333249363,1721979046509,-500.0,0.00013972,2]
[333249364,1721979046518,-500.0,0.00013972,2]
[333249365,1721979046528,-500.0,0.00013972,2]
[333249366,1721979046538,-500.0,0.00013972,2]
[333249367,1721979046547,-500.0,0.00013972,2]
[333249368,1721979046557,-500.0,0.00013972,2]
[333249369,1721979046567,-500.0,0.00013972,2]
[333249370,1721979046577,-500.0,0.00013972,2]
[333249371,1721979046586,-500.0,0.00013972,2]
[333249372,1721979046596,-500.0,0.00013972,2]
[333249373,1721979046605,-500.0,0.00013972,2]
[333249374,1721979046614,-500.0,0.00013972,2]
[333249375,1721979046623,-500.0,0.00013972,2]
[333249376,1721979046633,-500.0,0.00013972,2]
[333249377,1721979046642,-500.0,0.00013972,2]
[333249378,1721979046653,-261.06,0.00013972,2]
[333249379,1721979046669,-500.0,0.00013972,2]
[333249380,1721979046678,-500.0,0.00013972,2]
[333249381,1721979046689,-500.0,0.00013972,2]
[333249382,1721979046699,-500.0,0.00013972,2]
[333249383,1721979046708,-500.0,0.00013972,2]
[333249384,1721979046718,-475.05915055,0.00013972,2]
[333249385,1721979046727,-526.4,0.00013972,2]
[333249386,1721979046738,-586.833863,0.00013972,2]
[333249387,1721979046748,-500.0,0.00013972,2]
[333249388,1721979046757,-500.0,0.00013972,2]
[333249389,1721979046767,-500.0,0.00013972,2]
[333249390,1721979046776,-504.48662313,0.00013972,2]
[333249391,1721979046786,-277.20004014,0.00013972,2]
[333249392,1721979046795,-500.0,0.00013972,2]
[333249393,1721979046804,-500.0,0.00013972,2]
[333249394,1721979046814,-500.0,0.00013972,2]
[333249395,1721979046824,-500.0,0.00013972,2]
[333249396,1721979046833,-500.0,0.00013972,2]
[333249397,1721979046843,-500.0,0.00013972,2]
[333249398,1721979046852,-226.83,0.00013972,2]
[333249399,1721979046861,-500.0,0.00013972,2]
[333249400,1721979046870,-500.0,0.00013972,2]
[333249401,1721979046879,-500.0,0.00013972,2]
[333249402,1721979046889,-649.8,0.00013972,2]
[333249403,1721979046898,-500.0,0.00013972,2]
[333249404,1721979046907,-500.0,0.00013972,2]
[333249405,1721979046918,-500.0,0.00013972,2]
[333249406,1721979046928,-500.0,0.00013972,2]
[333249407,1721979046937,-500.0,0.00013972,2]
[333249408,1721979046946,-386.11989247,0.00013972,2]
[333249409,1721979046955,-365.25620267,0.00013972,2]
[333249410,1721979046964,-500.0,0.00013972,2]
[333249411,1721979046974,-177.8,0.00013972,2]
[333249412,1721979046983,-262.78,0.00013972,2]
[333249413,1721979046992,-500.0,0.00013972,2]
[333249414,1721979047001,-500.0,0.00013972,2]
[333249415,1721979047010,-206.47478018,0.00013972,2]
[333249416,1721979047019,-522.41,0.00013972,2]
[333249417,1721979047028,-500.0,0.00013972,2]
[333249418,1721979047038,-500.0,0.00013972,2]
[333249419,1721979047047,-379.72,0.00013972,2]
[333249420,1721979047057,-500.0,0.00013972,2]
[333249421,1721979047066,-500.0,0.00013972,2]
[333249422,1721979047075,-500.0,0.00013972,2]
[333249423,1721979047084,-500.0,0.00013972,2]
[333249424,1721979047093,-500.0,0.00013972,2]
[333249425,1721979047102,-500.0,0.00013972,2]
[333249426,1721979047111,-500.0,0.00013972,2]
[333249427,1721979047120,-504.19036486,0.00013972,2]
[333249428,1721979047130,-500.0,0.00013972,2]
[333249429,1721979047139,-500.0,0.00013972,2]
[333249430,1721979047148,-500.0,0.00013972,2]
[333249431,1721979047158,-500.0,0.00013972,2]
[333249432,1721979047169,-500.0,0.00013972,2]
[333249433,1721979047178,-500.0,0.00013972,2]
[333249434,1721979047187,-500.0,0.00013972,2]
[333249435,1721979047196,-500.0,0.00013972,2]
[333249436,1721979047205,-500.0,0.00013972,2]
[333249437,1721979047214,-500.0,0.00013972,2]
[333249438,1721979047223,-500.0,0.00013972,2]
[333249439,1721979047232,-500.0,0.00013972,2]
[333249440,1721979047242,-319.81,0.00013972,2]
[333249441,1721979047251,-245.98,0.00013972,2]
[333249442,1721979047260,-500.0,0.00013972,2]
[333249443,1721979047269,-151.0,0.0001399,2]
[333249444,1721979047278,-3063.4546143,0.0001399,2]
[333249445,1721979047287,-188777.38772384,0.00014,5]
[333249446,1721979047297,-151.0,0.00014,2]
[333249447,1721979047307,-151.0,0.00014,2]
[333249448,1721979047316,-289.19134195,0.00014,2]
[333249449,1721979047325,-153.0,0.00014,2]
[333249450,1721979047334,-206.3125778,0.00014,2]
[333249451,1721979047344,-151.0,0.00014,2]
[333249452,1721979047353,-153.0,0.00014,2]
[333249453,1721979047361,-83793.71451864,0.00014,2]
[333249454,1721979047372,-1531.72730715,0.00014236,2]
[333249455,1721979047381,-500.0,0.00014246,2]
[333249456,1721979047391,-225.02,0.00014246,2]
[333249457,1721979047400,-226.57,0.00014246,2]
[333249458,1721979047409,-324.8,0.00014246,2]
[333249459,1721979047420,-500.0,0.00014246,2]
[333249460,1721979047430,-427.25,0.00014246,2]
[333249461,1721979047439,-500.0,0.00014246,2]
[333249462,1721979047449,-500.0,0.00014246,2]
[333249463,1721979047458,-500.0,0.00014246,2]
[333249464,1721979047467,-500.0,0.00014246,2]
[333249465,1721979047478,-500.0,0.00014246,2]
[333249466,1721979047487,-500.0,0.00014246,2]
[333249467,1721979047497,-598.94,0.00014246,2]
[333249468,1721979047506,-171.1,0.00014246,2]
[333249469,1721979047516,-500.0,0.00014246,2]
[333249470,1721979047527,-286.52,0.00014246,2]
[333249471,1721979047538,-245.42,0.00014246,2]
[333249472,1721979047549,-500.0,0.00014246,2]
[333249473,1721979047559,-500.0,0.00014246,2]
[333249474,1721979047569,-500.0,0.00014246,2]
[333249475,1721979047583,-453.44,0.00014246,2]
[333249476,1721979047593,-500.0,0.00014246,2]
[333249477,1721979047602,-500.0,0.00014246,2]
[333249478,1721979047612,-500.0,0.00014246,2]
[333249479,1721979047621,-443.58,0.00014246,2]
[333249480,1721979047631,-500.0,0.00014246,2]
[333249481,1721979047640,-500.0,0.00014246,2]
[333249482,1721979047650,-500.0,0.00014246,2]
[333249483,1721979047664,-500.0,0.00014246,2]
[333249484,1721979047674,-500.0,0.00014246,2]
[333249485,1721979047684,-500.0,0.00014246,2]
[333249486,1721979047693,-500.0,0.00014246,2]
[333249487,1721979047705,-225.02,0.00014246,2]
[333249488,1721979047714,-157.36,0.00014246,2]
[333249489,1721979047724,-324.8,0.00014246,2]
[333249490,1721979047735,-226.57,0.00014246,2]
[333249491,1721979047745,-340.71,0.00014246,2]
[333249492,1721979047754,-500.0,0.00014246,2]
[333249493,1721979047763,-500.0,0.00014246,2]
[333249494,1721979047772,-427.25,0.00014246,2]
[333249495,1721979047782,-500.0,0.00014246,2]
[333249496,1721979047791,-500.0,0.00014246,2]
[333249497,1721979047801,-500.0,0.00014246,2]
[333249498,1721979047810,-500.0,0.00014246,2]
[333249499,1721979047820,-500.0,0.00014246,2]
[333249500,1721979047829,-500.0,0.00014246,2]
[333249501,1721979047839,-500.0,0.00014246,2]
[333249502,1721979047848,-321.9,0.00014246,2]
[333249503,1721979047856,-500.0,0.00014246,2]
[333249504,1721979047866,-500.0,0.00014246,2]
[333249505,1721979047875,-386.12,0.00014246,2]
[333249506,1721979047885,-582.38,0.00014246,2]
[333249507,1721979047894,-643.66,0.00014246,2]
[333249508,1721979047904,-391.6,0.00014246,2]
[333249509,1721979047914,-500.0,0.00014246,2]
[333249510,1721979047924,-339.16,0.00014246,2]
[333249511,1721979047934,-500.0,0.00014246,2]
[333249512,1721979047944,-332.42,0.00014246,2]
[333249513,1721979047954,-544.0,0.00014246,2]
[333249514,1721979047963,-500.0,0.00014246,2]
[333249515,1721979047973,-500.0,0.00014246,2]
[333249516,1721979047983,-614.42,0.00014246,2]
[333249517,1721979047992,-500.0,0.00014246,2]
[333249518,1721979048002,-349.34,0.00014246,2]
[333249519,1721979048012,-349.8,0.00014246,2]
[333249520,1721979048021,-520.09,0.00014246,2]
[333249521,1721979048031,-500.0,0.00014246,2]
[333249522,1721979048041,-500.0,0.00014246,2]
[333249523,1721979048050,-354.6,0.00014246,2]
[333249524,1721979048060,-500.0,0.00014246,2]
[333249525,1721979048069,-500.0,0.00014246,2]
[333249526,1721979048079,-500.0,0.00014246,2]
[333249527,1721979048089,-500.0,0.00014246,2]
[333249528,1721979048098,-500.0,0.00014246,2]
[333249529,1721979048108,-450.04,0.00014246,2]
[333249530,1721979048118,-649.6,0.00014246,2]
[333249531,1721979048127,-500.0,0.00014246,2]
[333249532,1721979048137,-151.0,0.00014246,2]
[333249533,1721979048147,-500.0,0.00014246,2]
[333249534,1721979048157,-500.0,0.00014246,2]
[333249535,1721979048168,-500.0,0.00014246,2]
[333249536,1721979048178,-500.0,0.00014246,2]
[333249537,1721979048189,-453.14,0.00014246,2]
[333249538,1721979048199,-500.0,0.00014246,2]
[333249539,1721979048209,-500.0,0.00014246,2]
[333249540,1721979048219,-500.0,0.00014246,2]
[333249541,1721979048229,-500.0,0.00014246,2]
[333249542,1721979048240,-599.96,0.00014246,2]
[333249543,1721979048250,-200.96,0.00014246,2]
[333249544,1721979048261,-371.4,0.00014246,2]
[333249545,1721979048271,-500.0,0.00014246,2]
[333249546,1721979048282,-500.0,0.00014246,2]
[333249547,1721979048292,-500.0,0.00014246,2]
[333249548,1721979048303,-500.0,0.00014246,2]
[333249549,1721979048315,-500.0,0.00014246,2]
[333249550,1721979048326,-500.0,0.00014246,2]
[333249551,1721979048335,-500.0,0.00014246,2]
[333249552,1721979048346,-500.0,0.00014246,2]
[333249553,1721979048356,-573.04,0.00014246,2]
[333249554,1721979048365,-500.0,0.00014246,2]
[333249555,1721979048375,-500.0,0.00014246,2]
[333249556,1721979048385,-500.0,0.00014246,2]
[333249557,1721979048395,-500.0,0.00014246,2]
[333249558,1721979048406,-507.41780141,0.00014246,2]
[333249559,1721979048417,-504.17779074,0.00014246,2]
[333249560,1721979048427,-500.0,0.00014246,2]
[333249561,1721979048437,-500.0,0.00014246,2]
[333249562,1721979048447,-500.0,0.00014246,2]
[333249563,1721979048458,-192.62994465,0.00014246,2]
[333249564,1721979048468,-500.0,0.00014246,2]
[333249565,1721979048478,-500.0,0.00014246,2]
[333249566,1721979048488,-500.0,0.00014246,2]
[333249567,1721979048498,-500.0,0.00014246,2]
[333249568,1721979048507,-508.02940413,0.00014246,2]
[333249569,1721979048517,-500.0,0.00014246,2]
[333249570,1721979048527,-500.0,0.00014246,2]
[333249571,1721979048537,-750.0,0.00014247,2]
[333249572,1721979048546,-156.472421,0.00014259,2]
[333249573,1721979048556,-203.194656,0.00014259,2]
[333249574,1721979048567,-184.650394,0.00014259,2]
[333249575,1721979048578,-163.907305,0.00014259,2]
[333249576,1721979048588,-184.888278,0.00014259,2]
[333249577,1721979048598,-172.420128,0.00014259,2]
[333249578,1721979048608,-226.809148,0.00014259,2]
[333249579,1721979048618,-324.980083,0.00014259,2]
[333249580,1721979048630,-273.326537,0.00014259,2]
[333249581,1721979048640,-157.370027,0.00014259,2]
[333249582,1721979048651,-167.06949,0.00014259,2]
[333249583,1721979048666,-600.0,0.00014304,2]
[333249584,1721979048680,-3200.0,0.00014324,2]
[333249585,1721979048690,-300.191,0.00014324,2]
[333249586,1721979048702,-324.980083,0.00014437,2]
[333249587,1721979048712,-273.326537,0.00014437,2]
[333249588,1721979048722,-620.00000023,0.00014449,2]
[333249589,1721979048733,-600.0,0.00014453,2]
[333249590,1721979048745,-184.888278,0.00014497,2]
[333249591,1721979048756,-172.420128,0.00014497,2]
[333249592,1721979048767,-500.0,0.0001452,2]
[333249593,1721979048778,-500.0,0.0001452,2]
[333249594,1721979048789,-493.05,0.0001452,2]
[333249595,1721979048801,-500.0,0.0001452,2]
[333249596,1721979048812,-500.0,0.0001452,2]
[333249597,1721979048823,-500.0,0.0001452,2]
[333249598,1721979048833,-287.1,0.0001452,2]
[333249599,1721979048843,-500.0,0.0001452,2]
[333249600,1721979048854,-500.0,0.0001452,2]
[333249601,1721979048865,-500.0,0.0001452,2]
[333249602,1721979048875,-287.1,0.0001452,2]
[333249603,1721979048885,-171.1,0.0001452,2]
[333249604,1721979048895,-500.0,0.0001452,2]
[333249605,1721979048906,-500.0,0.0001452,2]
[333249606,1721979048917,-500.0,0.0001452,2]
[333249607,1721979048928,-500.0,0.0001452,2]
[333249608,1721979048938,-500.0,0.0001452,2]
[333249609,1721979048949,-286.52,0.0001452,2]
[333249610,1721979048960,-500.0,0.0001452,2]
[333249611,1721979048971,-500.0,0.0001452,2]
[333249612,1721979048981,-500.0,0.0001452,2]
[333249613,1721979048990,-505.71279425,0.0001452,2]
[333249614,1721979049000,-500.0,0.0001452,2]
[333249615,1721979049012,-500.0,0.0001452,2]
[333249616,1721979049023,-192.26,0.0001452,2]
[333249617,1721979049035,-500.0,0.0001452,2]
[333249618,1721979049046,-207.22,0.0001452,2]
[333249619,1721979049057,-468.08,0.0001452,2]
[333249620,1721979049067,-500.0,0.0001452,2]
[333249621,1721979049077,-646.76,0.0001452,2]
[333249622,1721979049089,-560.6,0.0001452,2]
[333249623,1721979049099,-643.66,0.0001452,2]
[333249624,1721979049109,-500.0,0.0001452,2]
[333249625,1721979049119,-500.0,0.0001452,2]
[333249626,1721979049130,-404.4,0.0001452,2]
[333249627,1721979049140,-500.0,0.0001452,2]
[333249628,1721979049151,-406.88,0.0001452,2]
[333249629,1721979049161,-500.0,0.0001452,2]
[333249630,1721979049173,-387.16,0.0001452,2]
[333249631,1721979049183,-500.0,0.0001452,2]
[333249632,1721979049193,-500.0,0.0001452,2]
[333249633,1721979049203,-500.0,0.0001452,2]
[333249634,1721979049214,-500.0,0.0001452,2]
[333249635,1721979049223,-500.0,0.0001452,2]
[333249636,1721979049233,-500.0,0.0001452,2]
[333249637,1721979049243,-500.0,0.0001452,2]